fUST/lending_fUST_20260318
["ID","MTS","AMOUNT","RATE_DAILY","PERIOD"]
[408501192,1773768640804,-351.0,3.886e-05,2]
[408501194,1773768640815,-351.0,3.886e-05,2]
[408501196,1773768640825,-351.0,3.886e-05,2]
[408501198,1773768640834,-351.0,3.886e-05,2]
[408501200,1773768640843,-351.0,3.886e-05,2]
[408501202,1773768640853,-351.0,3.886e-05,2]
[408501204,1773768640863,-351.0,3.886e-05,2]
[408501205,1773768640874,-351.0,3.886e-05,2]
[408501208,1773768640884,-339.0,3.886e-05,2]
[408501209,1773768640895,-351.0,3.886e-05,2]
[408501211,1773768640904,-339.0,3.886e-05,2]
[408501213,1773768640913,-351.0,3.886e-05,2]
[408501214,1773768640923,-339.0,3.886e-05,2]
[408501216,1773768640932,-351.0,3.886e-05,2]
[408501217,1773768640942,-339.0,3.886e-05,2]
[408501218,1773768640951,-351.0,3.886e-05,2]
[408501219,1773768640960,-339.0,3.886e-05,2]
[408501220,1773768640969,-351.0,3.886e-05,2]
[408501221,1773768640978,-351.0,3.886e-05,2]
[408501222,1773768640988,-339.0,3.886e-05,2]
[408501223,1773768640998,-351.0,3.886e-05,2]
[408501224,1773768641007,-339.0,3.886e-05,2]
[408501225,1773768641017,-339.0,3.886e-05,2]
[408501226,1773768641026,-351.0,3.886e-05,2]
[408501227,1773768641036,-385.89271521,3.886e-05,2]
[408501228,1773768641045,-351.0,3.886e-05,2]
[408501229,1773768641055,-351.0,3.886e-05,2]
[408501230,1773768641064,-318.94063894,3.886e-05,2]
[408501231,1773768641074,-178.0,3.886e-05,2]
[408501232,1773768641084,-178.0,3.886e-05,2]
[408501233,1773768641093,-180.17960861,3.886e-05,2]
[408501234,1773768641103,-166.0,3.886e-05,2]
[408501235,1773768641112,-690.0,3.886e-05,2]
[408501236,1773768641123,-690.0,3.886e-05,2]
[408501237,1773768641133,-690.0,3.886e-05,2]
[408501238,1773768641142,-690.0,3.886e-05,2]
[408501239,1773768641152,-351.0,3.886e-05,2]
[408501240,1773768641161,-690.0,3.886e-05,2]
[408501241,1773768641171,-351.0,3.886e-05,2]
[408501242,1773768641180,-690.0,3.886e-05,2]
[408501243,1773768641190,-351.0,3.886e-05,2]
[408501244,1773768641199,-690.0,3.886e-05,2]
[408501245,1773768641209,-351.0,3.886e-05,2]
[408501246,1773768641218,-690.0,3.886e-05,2]
[408501247,1773768641227,-351.0,3.886e-05,2]
[408501248,1773768641237,-690.0,3.886e-05,2]
[408501249,1773768641247,-351.0,3.886e-05,2]
[408501250,1773768641256,-690.0,3.886e-05,2]
[408501251,1773768641266,-351.0,3.886e-05,2]
[408501252,1773768641275,-690.0,3.886e-05,2]
[408501253,1773768641285,-351.0,3.886e-05,2]
[408501254,1773768641294,-690.0,3.886e-05,2]
[408501255,1773768641303,-351.0,3.886e-05,2]
[408501256,1773768641312,-690.0,3.886e-05,2]
[408501257,1773768641321,-351.0,3.886e-05,2]
[408501258,1773768641331,-690.0,3.886e-05,2]
[408501259,1773768641342,-351.0,3.886e-05,2]
[408501260,1773768641351,-690.0,3.886e-05,2]
[408501261,1773768641361,-298.90682547,3.886e-05,2]
[408501262,1773768641370,-690.0,3.886e-05,2]
[408501263,1773768641380,-339.0,3.886e-05,2]
[408501264,1773768641390,-690.0,3.886e-05,2]
[408501265,1773768641400,-339.0,3.886e-05,2]
[408501266,1773768641409,-690.0,3.886e-05,2]
[408501267,1773768641418,-339.0,3.886e-05,2]
[408501268,1773768641428,-690.0,3.886e-05,2]
[408501269,1773768641437,-690.0,3.886e-05,2]
[408501270,1773768641446,-339.0,3.886e-05,2]
[408501271,1773768641456,-324.23734771,3.886e-05,2]
[408501272,1773768641465,-339.0,3.886e-05,2]
[408501273,1773768641475,-339.0,3.886e-05,2]
[408501274,1773768641485,-339.0,3.886e-05,2]
[408501275,1773768641494,-339.0,3.886e-05,2]
[408501276,1773768641504,-339.0,3.886e-05,2]
[408501277,1773768641513,-339.0,3.886e-05,2]
[408501278,1773768641522,-339.0,3.886e-05,2]
[408501279,1773768641532,-339.0,3.886e-05,2]
[408501280,1773768641541,-339.0,3.886e-05,2]
[408501281,1773768641551,-339.0,3.886e-05,2]
[408501282,1773768641560,-339.0,3.886e-05,2]
[408501283,1773768641570,-339.0,3.886e-05,2]
[408501284,1773768641579,-339.0,3.886e-05,2]
[408501285,1773768641589,-339.0,3.886e-05,2]
[408501286,1773768641598,-339.0,3.886e-05,2]
[408501287,1773768641607,-339.0,3.886e-05,2]
[408501288,1773768641617,-339.0,3.886e-05,2]
[408501289,1773768641626,-339.0,3.886e-05,2]
[408501290,1773768641636,-339.0,3.886e-05,2]
[408501291,1773768641646,-339.0,3.886e-05,2]
[408501292,1773768641657,-339.0,3.886e-05,2]
[408501293,1773768641666,-339.0,3.886e-05,2]
[408501294,1773768641675,-339.0,3.886e-05,2]
[408501295,1773768641686,-339.0,3.886e-05,2]
[408501296,1773768641702,-339.0,3.886e-05,2]
[408501297,1773768641711,-339.0,3.886e-05,2]
[408501298,1773768641721,-339.0,3.886e-05,2]
[408501299,1773768641732,-339.0,3.886e-05,2]
[408501300,1773768641742,-339.0,3.886e-05,2]
[408501301,1773768641751,-339.0,3.886e-05,2]
[408501302,1773768641760,-339.0,3.886e-05,2]
[408501303,1773768641770,-339.0,3.886e-05,2]
[408501304,1773768641780,-339.0,3.886e-05,2]
[408501305,1773768641789,-339.0,3.886e-05,2]
[408501306,1773768641799,-339.0,3.886e-05,2]
[408501307,1773768641809,-339.0,3.886e-05,2]
[408501308,1773768641828,-339.0,3.886e-05,2]
[408501309,1773768641846,-339.0,3.886e-05,2]
[408501310,1773768641857,-339.0,3.886e-05,2]
[408501311,1773768641868,-339.0,3.886e-05,2]
[408501312,1773768641880,-339.0,3.886e-05,2]
[408501313,1773768641890,-339.0,3.886e-05,2]
[408501314,1773768641901,-339.0,3.886e-05,2]
[408501315,1773768641911,-339.0,3.886e-05,2]
[408501316,1773768641922,-339.0,3.886e-05,2]
[408501317,1773768641932,-304.74801984,3.886e-05,2]
[408501318,1773768641944,-151.0,3.886e-05,2]
[408501319,1773768641956,-151.0,3.886e-05,2]
[408501320,1773768641967,-151.0,3.886e-05,2]
[408501321,1773768641978,-160.646524,3.886e-05,2]
[408501322,1773768641989,-160.646524,3.886e-05,2]
[408501323,1773768642000,-156.80796388,3.886e-05,2]
[408501324,1773768642011,-160.646524,3.886e-05,2]
[408501325,1773768642022,-160.646524,3.886e-05,2]
[408501326,1773768642032,-160.646524,3.886e-05,2]
[408501327,1773768642043,-160.646524,3.886e-05,2]
[408501328,1773768642054,-160.646524,3.886e-05,2]
[408501329,1773768642064,-160.646524,3.886e-05,2]
[408501330,1773768642074,-339.0,3.886e-05,2]
[408501331,1773768642086,-500.0,3.898e-05,2]
[408501332,1773768642096,-788.0,3.9e-05,2]
[408501333,1773768642106,-2183.31810187,3.902e-05,2]
[408501334,1773768642117,-5996.02985074,3.902e-05,2]
[408501335,1773768642128,-800.0,3.915e-05,2]
[408501336,1773768642139,-800.0,3.919e-05,2]
[408501337,1773768642149,-151.0,3.923e-05,2]
[408501338,1773768642160,-151.0,3.923e-05,2]
[408501339,1773768642170,-151.0,3.923e-05,2]
[408501340,1773768642180,-214.34,3.923e-05,2]
[408501341,1773768642190,-500.0,3.928e-05,2]
[408501342,1773768642200,-800.0,3.935e-05,2]
[408501343,1773768642211,-2264.10087164,3.957e-05,2]
[408501344,1773768642220,-6217.88295522,3.957e-05,2]
[408501345,1773768642230,-800.0,3.965e-05,2]
[408501346,1773768642241,-1221.0237828,3.965e-05,2]
[408501347,1773768642250,-800.0,3.984e-05,2]
[408501348,1773768642260,-1500.0,3.998e-05,2]
[408501349,1773768642270,-1500.0,3.998e-05,2]
[408501350,1773768642280,-1495.90438206,3.998e-05,2]
[408501351,1773768642290,-6054.0455553,3.999e-05,2]
[408501352,1773768642300,-500.0,4e-05,2]
[408501353,1773768642310,-500.0,4e-05,2]
[408501354,1773768642328,-500.0,4e-05,2]
[408501355,1773768642342,-500.0,4e-05,2]
[408501356,1773768642355,-500.0,4e-05,2]
[408501357,1773768642367,-500.0,4e-05,2]
[408501358,1773768642379,-500.0,4e-05,2]
[408501359,1773768642391,-500.0,4e-05,2]
[408501360,1773768642403,-500.0,4e-05,2]
[408501361,1773768642415,-500.0,4e-05,2]
[408501362,1773768642428,-500.0,4e-05,2]
[408501363,1773768642439,-399.74,4e-05,2]
[408501364,1773768642451,-2347.87260389,4.012e-05,2]
[408501365,1773768642463,-6447.94462457,4.012e-05,2]
[408501366,1773768642475,-160.646524,4.012e-05,2]
[408501367,1773768642486,-160.646524,4.012e-05,2]
[408501368,1773768642497,-160.646524,4.012e-05,2]
[408501369,1773768642509,-160.646531,4.012e-05,2]
[408501370,1773768642520,-151.0,4.033e-05,2]
[408501386,1773768642828,-151.0,4.033e-05,2]
[408501388,1773768642838,-151.0,4.033e-05,2]
[408501390,1773768642848,-272.4472322,4.066e-05,2]
[408501392,1773768642858,-2434.74389024,4.067e-05,2]
[408501394,1773768642868,-2948.27889022,4.067e-05,2]
[408501395,1773768642877,-1350.8401543,4.105e-05,2]
[408501396,1773768642887,-1000.0,4.111e-05,2]
[408501397,1773768642897,-1390.70804264,4.122e-05,2]
[408501399,1773768642907,-1152.0,4.248e-05,2]
[408501401,1773768642916,-461.67526834,4.285e-05,2]
[408501402,1773768642926,-151.0,4.285e-05,2]
[408501403,1773768642936,-168.3888056,4.285e-05,2]
[408501404,1773768642946,-557.5788265,4.285e-05,2]
[408501406,1773768642955,-2230.315306,4.285e-05,2]
[408501407,1773768642965,-500.0,4.398e-05,2]
[408501408,1773768642975,-1127.73931848,4.398e-05,2]
[408501409,1773768642984,-1500.0,4.398e-05,2]
[408501410,1773768642994,-1500.0,4.398e-05,2]
[408501411,1773768643004,-381.76312023,4.398e-05,2]
[408501413,1773768643014,-1500.0,4.398e-05,2]
[408501415,1773768643024,-500.0,4.398e-05,2]
[408501417,1773768643033,-1000.0,4.446e-05,2]
[408501419,1773768643044,-151.0,4.471e-05,2]
[408501421,1773768643053,-151.0,4.471e-05,2]
[408501423,1773768643066,-151.0,4.471e-05,2]
[408501424,1773768643076,-1000.0,4.476e-05,2]
[408501426,1773768643086,-500.0,4.5e-05,2]
[408501428,1773768643097,-1000.0,4.522e-05,2]
[408501429,1773768643107,-244.0,4.522e-05,2]
[408501430,1773768643117,-2000.0,4.546e-05,2]
[408501431,1773768643127,-2000.0,4.546e-05,2]
[408501432,1773768643137,-324.7177055,4.548e-05,2]
[408501433,1773768643148,-324.7177055,4.548e-05,2]
[408501434,1773768643157,-1613.0,4.673e-05,2]
[408501435,1773768643167,-800.0,4.736e-05,2]
[408501436,1773768643177,-800.0,4.75e-05,2]
[408501437,1773768643186,-800.0,4.783e-05,2]
[408501438,1773768643196,-800.0,4.794e-05,2]
[408501439,1773768643205,-451.097656,4.802e-05,2]
[408501440,1773768643215,-17523.3881,4.802e-05,2]
[408501441,1773768643224,-800.0,4.813e-05,2]
[408501442,1773768643233,-800.0,4.82e-05,2]
[408501443,1773768643243,-478.75725327,4.833e-05,2]
[408501444,1773768643252,-151.0,4.833e-05,2]
[408501445,1773768643262,-174.61919141,4.833e-05,2]
[408501446,1773768643272,-578.20924308,4.833e-05,2]
[408501447,1773768643282,-2312.83697232,4.833e-05,2]
[408501448,1773768643291,-800.0,4.838e-05,2]
[408501449,1773768643301,-198.47819055,4.873e-05,2]
[408501450,1773768643310,-800.0,4.878e-05,2]
[408501451,1773768643320,-2413.06795073,4.9e-05,2]
[408501452,1773768643330,-53913.462206,4.9e-05,2]
[408501453,1773768643339,-800.0,4.905e-05,2]
[408501454,1773768643349,-500.466,4.92e-05,2]
[408501455,1773768643359,-800.0,4.924e-05,2]
[408501457,1773768643369,-800.0,4.926e-05,2]
[408501458,1773768643378,-2000.0,4.946e-05,2]
[408501459,1773768643388,-2000.0,4.946e-05,2]
[408501460,1773768643398,-2000.0,4.946e-05,2]
[408501461,1773768643408,-800.0,4.97e-05,2]
[408501462,1773768643417,-500.0,4.973e-05,2]
[408501463,1773768643427,-500.0003436,4.973e-05,2]
[408501464,1773768643436,-500.0,4.973e-05,2]
[408501465,1773768643446,-500.0,4.973e-05,2]
[408501466,1773768643455,-1000.0,4.974e-05,2]
[408501467,1773768643465,-492.0,4.974e-05,2]
[408501468,1773768643475,-800.0,4.991e-05,2]
[408501469,1773768643485,-500.0,4.994e-05,2]
[408501470,1773768643495,-500.0,4.997e-05,2]
[408501471,1773768643506,-227.00272651,4.997e-05,2]
[408501472,1773768643515,-500.0,4.997e-05,2]
[408501473,1773768643525,-500.0,4.997e-05,2]
[408501474,1773768643535,-200.0,4.997e-05,2]
[408501475,1773768643545,-500.0,4.997e-05,2]
[408501476,1773768643555,-500.0,4.997e-05,2]
[408501477,1773768643564,-500.0,4.997e-05,2]
[408501478,1773768643575,-500.0,4.997e-05,2]
[408501479,1773768643584,-265.52791358,4.997e-05,2]
[408501480,1773768643594,-150.35799441,4.997e-05,2]
[408501481,1773768643604,-500.0,4.997e-05,2]
[408501482,1773768643614,-590.58689649,4.997e-05,2]
[408501483,1773768643624,-150.37773551,4.997e-05,2]
[408501484,1773768643634,-150.3762688,4.997e-05,2]
[408501485,1773768643644,-500.0,4.997e-05,2]
[408501486,1773768643654,-530.19071005,4.997e-05,2]
[408501487,1773768643664,-186.94718738,4.997e-05,2]
[408501488,1773768643674,-500.0,4.997e-05,2]
[408501489,1773768643684,-500.0,4.997e-05,2]
[408501490,1773768643698,-500.0,4.997e-05,2]
[408501491,1773768643708,-203.64429236,4.997e-05,2]
[408501492,1773768643718,-346.24390338,4.997e-05,2]
[408501493,1773768643730,-291.78752749,4.997e-05,2]
[408501494,1773768643741,-500.0,4.997e-05,2]
[408501495,1773768643751,-186.58857604,4.997e-05,2]
[408501496,1773768643761,-500.0,4.997e-05,2]
[408501497,1773768643771,-500.0,4.997e-05,2]
[408501498,1773768643780,-564.65934263,4.997e-05,2]
[408501499,1773768643790,-158.0,5e-05,2]
[408501500,1773768643800,-500.0,5e-05,2]
[408501501,1773768643809,-8481.26249541,5e-05,2]
[408501502,1773768643819,-28920.95505551,5e-05,2]
[408501503,1773768643829,-22814.67897219,5e-05,2]
[408501504,1773768643839,-18693.82824997,5e-05,2]
[408501505,1773768643848,-20754.25361108,5e-05,2]
[408501506,1773768643858,-16633.40288891,5e-05,2]
[408501507,1773768643868,-199.50463792,5e-05,2]
[408501508,1773768643878,-281.7968957,5e-05,2]
[408501509,1773768643889,-299.53154876,5e-05,2]
[408501510,1773768643899,-308.4946982,5e-05,2]
[408501511,1773768643909,-286.85131281,5e-05,2]
[408501512,1773768643918,-748.92334557,5e-05,2]
[408501513,1773768643928,-949.12247625,5e-05,2]
[408501514,1773768643938,-579.03349518,5e-05,2]
[408501515,1773768643949,-871.21567755,5e-05,2]
[408501516,1773768643959,-191.94009849,5e-05,2]
[408501517,1773768643969,-500.0,5e-05,2]
[408501518,1773768643979,-500.0,5e-05,2]
[408501519,1773768643989,-500.0,5e-05,2]
[408501520,1773768643998,-500.0,5e-05,2]
[408501521,1773768644010,-500.0,5e-05,2]
[408501522,1773768644020,-500.0,5e-05,2]
[408501523,1773768644030,-500.0,5e-05,2]
[408501524,1773768644039,-500.0,5e-05,2]
[408501525,1773768644049,-500.0,5e-05,2]
[408501526,1773768644059,-500.0,5e-05,2]
[408501527,1773768644069,-500.0,5e-05,2]
[408501528,1773768644080,-500.0,5e-05,2]
[408501529,1773768644089,-500.0,5e-05,2]
[408501530,1773768644099,-500.0,5e-05,2]
[408501531,1773768644109,-500.0,5e-05,2]
[408501532,1773768644119,-500.0,5e-05,2]
[408501533,1773768644130,-500.0,5e-05,2]
[408501534,1773768644140,-500.0,5e-05,2]
[408501535,1773768644150,-500.0,5e-05,2]
[408501536,1773768644160,-500.0,5e-05,2]
[408501537,1773768644170,-500.0,5e-05,2]
[408501538,1773768644180,-500.0,5e-05,2]
[408501539,1773768644189,-625.33420283,5e-05,2]
[408501540,1773768644199,-500.0,5e-05,2]
[408501541,1773768644209,-500.0,5e-05,2]
[408501542,1773768644218,-500.0,5e-05,2]
[408501543,1773768644228,-500.0,5e-05,2]
[408501544,1773768644238,-500.0,5e-05,2]
[408501545,1773768644247,-500.0,5e-05,2]
[408501546,1773768644257,-500.0,5e-05,2]
[408501547,1773768644266,-500.0,5e-05,2]
[408501548,1773768644276,-500.0,5e-05,2]
[408501549,1773768644286,-500.0,5e-05,2]
[408501550,1773768644296,-500.0,5e-05,2]
[408501551,1773768644305,-500.0,5e-05,2]
[408501552,1773768644315,-500.0,5e-05,2]
[408501553,1773768644325,-500.0,5e-05,2]
[408501554,1773768644335,-500.0,5e-05,2]
[408501555,1773768644345,-500.0,5e-05,2]
[408501556,1773768644355,-500.0,5e-05,2]
[408501557,1773768644364,-500.0,5e-05,2]
[408501558,1773768644374,-500.0,5e-05,2]
[408501559,1773768644385,-500.0,5e-05,2]
[408501560,1773768644396,-500.0,5e-05,2]
[408501561,1773768644406,-500.0,5e-05,2]
[408501562,1773768644416,-500.0,5e-05,2]
[408501563,1773768644426,-500.0,5e-05,2]
[408501564,1773768644436,-500.0,5e-05,2]
[408501565,1773768644446,-500.0,5e-05,2]
[408501566,1773768644456,-500.0,5e-05,2]
[408501567,1773768644466,-500.0,5e-05,2]
[408501568,1773768644475,-500.0,5e-05,2]
[408501569,1773768644485,-500.0,5e-05,2]
[408501570,1773768644495,-500.0,5e-05,2]
[408501571,1773768644505,-500.0,5e-05,2]
[408501572,1773768644515,-500.0,5e-05,2]
[408501573,1773768644526,-500.0,5e-05,2]
[408501574,1773768644535,-500.0,5e-05,2]
[408501575,1773768644545,-500.0,5e-05,2]
[408501576,1773768644555,-500.0,5e-05,2]
[408501577,1773768644564,-529.75529149,5e-05,2]
[408501578,1773768644574,-500.0,5e-05,2]
[408501579,1773768644583,-500.0,5e-05,2]
[408501580,1773768644593,-500.0,5e-05,2]
[408501581,1773768644602,-500.0,5e-05,2]
[408501582,1773768644614,-500.0,5e-05,2]
[408501583,1773768644624,-500.0,5e-05,2]
[408501584,1773768644633,-500.0,5e-05,2]
[408501585,1773768644644,-500.0,5e-05,2]
[408501586,1773768644654,-500.0,5e-05,2]
[408501587,1773768644663,-500.0,5e-05,2]
[408501588,1773768644673,-500.0,5e-05,2]
[408501589,1773768644683,-203.62242447,5e-05,2]
[408501590,1773768644693,-500.0,5e-05,2]
[408501591,1773768644704,-500.0,5e-05,2]
[408501592,1773768644714,-500.0,5e-05,2]
[408501593,1773768644723,-500.0,5e-05,2]
[408501594,1773768644734,-500.0,5e-05,2]
[408501595,1773768644743,-500.0,5e-05,2]
[408501596,1773768644752,-500.0,5e-05,2]
[408501597,1773768644762,-500.0,5e-05,2]
[408501598,1773768644774,-500.0,5e-05,2]
[408501599,1773768644784,-500.0,5e-05,2]
[408501600,1773768644793,-500.0,5e-05,2]
[408501601,1773768644803,-500.0,5e-05,2]
[408501602,1773768644812,-500.0,5e-05,2]
[408501603,1773768644822,-500.0,5e-05,2]
[408501604,1773768644832,-500.0,5e-05,2]
[408501605,1773768644841,-500.0,5e-05,2]
[408501606,1773768644851,-500.0,5e-05,2]
[408501607,1773768644861,-500.0,5e-05,2]
[408501608,1773768644870,-500.0,5e-05,2]
[408501609,1773768644880,-500.0,5e-05,2]
[408501610,1773768644890,-500.0,5e-05,2]
[408501611,1773768644900,-500.0,5e-05,2]
[408501612,1773768644909,-500.0,5e-05,2]
[408501613,1773768644919,-500.0,5e-05,2]
[408501614,1773768644928,-500.0,5e-05,2]
[408501615,1773768644938,-500.0,5e-05,2]
[408501616,1773768644948,-500.0,5e-05,2]
[408501617,1773768644958,-500.0,5e-05,2]
[408501618,1773768644967,-500.0,5e-05,2]
[408501619,1773768644977,-500.0,5e-05,2]
[408501620,1773768644986,-500.0,5e-05,2]
[408501621,1773768644995,-500.0,5e-05,2]
[408501622,1773768645005,-500.0,5e-05,2]
[408501623,1773768645015,-500.0,5e-05,2]
[408501624,1773768645025,-500.0,5e-05,2]
[408501625,1773768645035,-500.0,5e-05,2]
[408501626,1773768645045,-500.0,5e-05,2]
[408501627,1773768645055,-500.0,5e-05,2]
[408501628,1773768645064,-500.0,5e-05,2]
[408501629,1773768645074,-500.0,5e-05,2]
[408501630,1773768645084,-500.0,5e-05,2]
[408501631,1773768645093,-500.0,5e-05,2]
[408501632,1773768645104,-500.0,5e-05,2]
[408501633,1773768645113,-500.0,5e-05,2]
[408501634,1773768645123,-500.0,5e-05,2]
[408501635,1773768645133,-500.0,5e-05,2]
[408501636,1773768645142,-500.0,5e-05,2]
[408501637,1773768645152,-500.0,5e-05,2]
[408501638,1773768645162,-500.0,5e-05,2]
[408501639,1773768645171,-368.88551532,5e-05,2]
[408501640,1773768645180,-500.0,5e-05,2]
[408501641,1773768645189,-500.0,5e-05,2]
[408501642,1773768645199,-500.0,5e-05,2]
[408501643,1773768645208,-500.0,5e-05,2]
[408501644,1773768645278,-500.0,5e-05,2]
[408501645,1773768645288,-500.0,5e-05,2]
[408501646,1773768645298,-500.0,5e-05,2]
[408501647,1773768645308,-500.0,5e-05,2]
[408501648,1773768645317,-500.0,5e-05,2]
[408501649,1773768645326,-500.0,5e-05,2]
[408501650,1773768645335,-833.3176989,5e-05,2]
[408501651,1773768645345,-833.3176989,5e-05,2]
[408501652,1773768645354,-49284.73183584,5e-05,2]
[408501653,1773768645364,-2500.0,5.094e-05,2]
[408501654,1773768645374,-2500.0,5.094e-05,2]
[408501655,1773768645383,-168.3888056,5.106e-05,2]
[408501656,1773768645393,-162.380719,5.106e-05,2]
[408501657,1773768645402,-2258.0,5.14e-05,2]
[408501658,1773768645411,-500.0,5.2e-05,2]
[408501659,1773768645422,-496.47127164,5.381e-05,2]
[408501660,1773768645432,-151.0,5.381e-05,2]
[408501661,1773768645441,-181.08010149,5.381e-05,2]
[408501662,1773768645450,-599.60298507,5.381e-05,2]
[408501663,1773768645460,-2398.4119403,5.381e-05,2]
[408501664,1773768645470,-1000.0,5.4e-05,2]
[408501665,1773768645479,-1000.0,5.4e-05,2]
[408501666,1773768645488,-1000.0,5.4e-05,2]
[408501668,1773768645497,-1000.0,5.4e-05,2]
[408501669,1773768645506,-1000.0,5.4e-05,2]
[408501670,1773768645516,-1000.0,5.472e-05,2]
[408501671,1773768645525,-791.0,5.472e-05,2]
[408501672,1773768645535,-500.0,5.479e-05,2]
[408501673,1773768645544,-500.0,5.479e-05,2]
[408501674,1773768645553,-500.0,5.479e-05,2]
[408501675,1773768645563,-500.0,5.479e-05,2]
[408501676,1773768645572,-500.0,5.479e-05,2]
[408501677,1773768645582,-512.09953724,5.479e-05,2]
[408501679,1773768645591,-500.0,5.479e-05,2]
[408501680,1773768645600,-500.0,5.479e-05,2]
[408501681,1773768645610,-500.0,5.479e-05,2]
[408501682,1773768645619,-500.0,5.479e-05,2]
[408501683,1773768645629,-500.0,5.479e-05,2]
[408501684,1773768645638,-500.0,5.479e-05,2]
[408501685,1773768645647,-500.0,5.479e-05,2]
[408501686,1773768645656,-500.0,5.479e-05,2]
[408501687,1773768645665,-500.0,5.479e-05,2]
[408501688,1773768645675,-500.0,5.479e-05,2]
[408501689,1773768645684,-500.0,5.479e-05,2]
[408501690,1773768645697,-500.0,5.479e-05,2]
[408501691,1773768645706,-500.0,5.479e-05,2]
[408501692,1773768645716,-500.0,5.479e-05,2]
[408501693,1773768645726,-500.0,5.479e-05,2]
[408501694,1773768645737,-500.0,5.479e-05,2]
[408501695,1773768645747,-332.72804751,5.479e-05,2]
[408501696,1773768645756,-986.36438165,5.479e-05,2]
[408501698,1773768645766,-300.0,5.479e-05,2]
[408501699,1773768645778,-3000.0,5.479e-05,2]
[408501700,1773768645788,-580.43665,5.479e-05,2]
[408501701,1773768645797,-2500.0,5.494e-05,2]
[408501702,1773768645808,-2500.0,5.494e-05,2]
[408501703,1773768645817,-2500.0,5.494e-05,2]
[408501704,1773768645827,-986.36438165,5.507e-05,2]
[408501705,1773768645836,-1129.19111035,5.521e-05,2]
[408501706,1773768645845,-1000.0,5.521e-05,2]
[408501707,1773768645855,-1000.0,5.521e-05,2]
[408501708,1773768645864,-986.36438165,5.534e-05,2]
[408501709,1773768645874,-2191.713771,5.539e-05,2]
[408501710,1773768645884,-986.36438165,5.562e-05,2]
[408501711,1773768645893,-986.36438165,5.589e-05,2]
[408501712,1773768645903,-500.0,5.6e-05,2]
[408501713,1773768645912,-2191.713771,5.608e-05,2]
[408501714,1773768645923,-986.36438165,5.616e-05,2]
[408501715,1773768645932,-3000.0,5.642e-05,2]
[408501716,1773768645941,-1622.86116283,5.642e-05,2]
[408501717,1773768645950,-986.36438165,5.644e-05,2]
[408501718,1773768645960,-160.0,5.651e-05,3]
[408501719,1773768645969,-3162.0,5.654e-05,2]
[408501720,1773768645979,-986.36438165,5.671e-05,2]
[408501721,1773768645988,-2191.713771,5.678e-05,2]
[408501722,1773768645998,-986.36438165,5.699e-05,2]
[408501723,1773768646007,-986.36438165,5.726e-05,2]
[408501724,1773768646019,-2191.713771,5.747e-05,2]
[408501725,1773768646029,-986.36438165,5.753e-05,2]
[408501726,1773768646038,-986.36438165,5.781e-05,2]
[408501727,1773768646047,-568.53301603,5.8e-05,2]
[408501728,1773768646056,-2191.713771,5.816e-05,2]
[408501729,1773768646065,-160.0,5.921e-05,4]
[408501730,1773768646074,-514.84070869,5.929e-05,2]
[408501731,1773768646083,-151.0,5.929e-05,2]
[408501732,1773768646093,-187.78006525,5.929e-05,2]
[408501733,1773768646102,-621.78829552,5.929e-05,2]
[408501734,1773768646112,-2487.15318209,5.929e-05,2]
[408501735,1773768646121,-20398.0,5.98e-05,2]
[408501736,1773768646131,-158.0,6e-05,2]